Cogmind - Beta 13 @@@ ROGUE MODE // 2024.05.02 @ 11:54:30 Player: Bzilon Result: Destroyed by G-47 Trooper with Particle Gun Performance ------------- Evolutions (2) 1000 Regions Visited (4) 800 Robots Destroyed (29) 145 Value Destroyed (489) 489 Prototype IDs (0) 0 Alien Tech Used (0) 0 Bonus (0) 0 TOTAL SCORE: 2434 Bonus ------- None Cogmind --------- Core Integrity 0/550 Matter 248/300 Energy 100/100 System Corruption 4% Temperature Cool (9) Movement Core (700) Ox13 Location -8/Materials Parts ------- > --- POWER (1) -------- (None) > --- PROPULSION (5) --- (None) > --- UTILITY (3) ------ High-capacity Storage Unit Improved Targeting Computer > --- WEAPON (2) ------- (None) > --- INVENTORY (20) --- Medium Matter Pod (100) Visual Processing Unit Terrain Scanner Hardlight Generator Peak State ------------ > --- POWER ------------ Light Ion Engine > --- PROPULSION ------- Wheel Flight Unit Flight Unit Flight Unit Flight Unit > --- UTILITY ---------- High-capacity Storage Unit Improved Targeting Computer Shield Generator > --- WEAPON ----------- Shock Rifle Heavy Assault Rifle > --- INVENTORY -------- Medium Matter Pod Visual Processing Unit Terrain Scanner Hardlight Generator Grenade Launcher Datajack Mining Laser Mining Laser [Rating: 17] Favorites ----------- Power Light Ion Engine Engine Light Ion Engine Power Core Light Nuclear Core Propulsion Flight Unit Treads Light Treads Leg Aluminum Leg Wheel Wheel Flight Unit Flight Unit Utility High-capacity Storage Unit Device Shield Generator Storage High-capacity Storage Unit Processor Visual Processing Unit Weapon Shock Rifle Energy Gun Shock Rifle Energy Cannon Beam Cannon Ballistic Gun Heavy Assault Rifle Launcher Grenade Launcher Special Weapon Mining Laser Special Melee Weapon Datajack Build | -11 -10 -9 -9 -8 ------- Run | Yrd Mat Mat Min Mat Slots Evolved 4 | . . 2 . 2 Power . | . . . . . Propulsion 3 | . . 2 . 1 Utility 1 | . . . . 1 Weapon . | . . . . . Parts Attached 36 | 6 4 9 10 7 Power 4 | 1 . 2 1 . Engine 3 | 1 . 1 1 . Core 1 | . . 1 . . Reactor . | . . . . . Propulsion 11 | 2 . 3 5 1 Treads 2 | . . 2 . . Leg 3 | 2 . 1 . . Wheel 2 | . . . 1 1 Hover . | . . . . . Flight 4 | . . . 4 . Utility 4 | . 1 1 1 1 Device 1 | . . . 1 . Storage 1 | . . 1 . . Processor 2 | . 1 . . 1 Hackware . | . . . . . Protection . | . . . . . Artifact . | . . . . . Weapon 17 | 3 3 3 3 5 Energy Gun 2 | . . . 2 . Energy Cannon 5 | . 2 3 . . Ballistic Gun 4 | 2 1 . 1 . Ballistic Cannon . | . . . . . Launcher 1 | . . . . 1 Special Weapon 4 | 1 . . . 3 Impact Weapon . | . . . . . Slashing Weapon . | . . . . . Piercing Weapon . | . . . . . Special Melee Weapon 1 | . . . . 1 Unidentified Prototypes . | . . . . . Parts Lost 24 | . 3 . 8 13 Power 3 | . 1 . 1 1 Propulsion 10 | . 1 . 4 5 Utility 1 | . . . . 1 Weapon 10 | . 1 . 3 6 Highest Loss Streak 9 | . 3 . 8 9 To Critical Strikes . | . . . . . Average Slot Usage (%) 79 | . 54 79 83 79 Engine 7 | . 5 6 7 8 Treads 2 | . . 11 . . Leg 5 | . 19 18 . . Wheel 1 | . . . . 7 Flight 19 | . . . 29 23 Device 2 | . . . 2 6 Storage 8 | . . 6 11 9 Processor 8 | . 4 11 8 9 Energy Gun 6 | . . . 10 7 Energy Cannon 5 | . 13 21 . . Ballistic Gun 7 | . 12 . 10 4 Naked Turns . | . . . . . Heaviest Build 53 | 5 6 53 53 51 Greatest Support 40 | 20 20 40 40 16 Greatest Overweight (x) 15 | . . 2 15 14 Average Overweight (x) 2 | . . . 4 4 Largest Inventory Capacity 20 | 5 5 20 20 20 Average Capacity 16 | 5 5 13 20 20 Most Carried 13 | 4 5 9 13 9 Average Carried 6 | 1 4 5 8 7 Final Capacity 20 | 5 5 20 20 20 Final Carried 10 | 4 5 9 10 4 Class Distribution -------------------- 55% | Scavenger-Mutant 44% | Mutant Dominant Class ---------------- Mutant | -10/Materials Scavenger-Mutant | -9/Materials Scavenger-Mutant | -9/Mines Scavenger-Mutant | -8/Materials Resources | -11 -10 -9 -9 -8 ----------- Run | Yrd Mat Mat Min Mat Matter Collected 572 | 300 22 110 140 . Remotely . | . . . . . Salvage Created 815 | 109 96 311 215 84 Parts 60 | 7 11 17 20 5 Haulers Intercepted . | . . . . . Recyclers Shooed 1 | . 1 . . . Parts Field Recycled . | . . . . . Retrieved Matter . | . . . . . Parts Self-Destructed . | . . . . . Prevented . | . . . . . Kills | -11 -10 -9 -9 -8 ------- Run | Yrd Mat Mat Min Mat Combat Hostiles Destroyed 11 | 1 4 3 2 1 Guns 5 | 1 4 . . . Cannons 4 | . . 3 1 . AOE 2 | . . . 1 1 Classes Destroyed 12 | 3 3 2 3 1 Worker 6 | 1 . 1 4 . Builder 4 | . . . 1 3 Tunneler 2 | 2 . . . . Recycler 2 | . . 1 1 . Operator 1 | . 1 . . . Watcher 3 | . 1 2 . . Swarmer 4 | . 4 . . . Grunt 2 | 1 . 1 . . Duelist 1 | . . . 1 . Sentry 2 | . . 2 . . Demolisher 1 | . . . 1 . Hunter 1 | . . . . 1 Best Kill Streak 4 | 2 4 2 2 3 Combat Bots Only 4 | 1 4 1 2 1 Max Kills in Single Turn 3 | 1 1 1 1 3 Gunslinging . | . . . . . Exploded 1 | . . . 1 1 Melee . | . . . . . Uniques/NPCs Destroyed . | . . . . . Combat | -11 -10 -9 -9 -8 -------- Run | Yrd Mat Mat Min Mat Hostile Shots Fired 238 | 9 69 9 44 107 Missed 58 | 5 12 3 7 31 Damage Taken 2727 | 42 458 78 1018 1131 Core 977 | 12 127 26 247 565 Absorbed by Shields 52 | . . . . 52 Core Remaining (%) 56 | 95 44 . 31 . Volleys Fired 107 | 23 27 20 26 11 Largest 2 | 2 2 2 2 2 Hottest 120 | 40 120 120 112 80 Shots Fired 175 | 45 40 40 32 18 Gun 111 | 45 32 . 20 14 Cannon 60 | . 8 40 12 . Launcher 4 | . . . . 4 Special . | . . . . . Kinetic 95 | 45 32 . 15 3 Thermal 44 | . 8 36 . . Explosive 4 | . . . . 4 Electromagnetic 32 | . . 4 17 11 Robot Hit Streak 10 | 6 10 7 5 9 Robot Miss Streak 5 | 3 5 4 2 1 Penetration Max . | . . . . . Secondary Targets 1 | . 1 . . . Max Gunslinging Chain 1 | . 1 . . . Shots Hit Robots 107 | 28 25 22 20 12 Core Hits 47 | 10 10 8 13 6 Critical Kills . | . . . . . Critical Parts Destroyed . | . . . . . Critical Strikes . | . . . . . Melee Attacks 1 | . . . . 1 Impact . | . . . . . Slashing . | . . . . . Piercing . | . . . . . Sneak Attacks . | . . . . . Combat Hostiles . | . . . . . Follow-up Attacks . | . . . . . Damage Inflicted 1714 | 248 231 429 451 355 Guns 738 | 230 161 . 195 152 Cannons 617 | . 70 425 122 . Explosions 336 | . . . 134 202 Melee . | . . . . . Ramming 23 | 18 . 4 . 1 Kinetic 579 | 230 161 . 148 40 Thermal 715 | . 70 369 134 142 Explosive 60 | . . . . 60 Electromagnetic 337 | . . 56 169 112 Impact . | . . . . . Slashing . | . . . . . Piercing . | . . . . . Highest Corruption 4 | . . . . 4 Average Corruption 3 | . . . . 3 Corruption Purged . | . . . . . Corruption Blocked . | . . . . . Effects 7 | . . . . 7 Heat Flow Errors 4 | . . . . 4 Energy Discharges 1 | . . . . 1 Data Loss (minor) 1 | . . . . 1 Data Loss (major) 1 | . . . . 1 Overload Shots . | . . . . . Overflow Damage 8 | . . 5 . 3 Projectiles 5 | . . 5 . . Explosions 3 | . . . . 3 Melee . | . . . . . Knockbacks . | . . . . . Impact . | . . . . . Kinetic . | . . . . . Secondary . | . . . . . Self-Inflicted Damage 51 | . . . 33 18 Shots 2 | . . . 1 1 Rammed 2 | . . 1 . 1 Targets Rammed 8 | 5 1 1 . 1 Kicked 6 | 5 1 . . . Crushed . | . . . . . Highest Temperature 244 | 12 45 239 180 244 Average Temperature 71 | 9 27 85 66 67 Received Heat Transfer 876 | 24 . 42 114 696 Siege Activations . | . . . . . Robots Corrupted . | . . . . . Combat Hostiles . | . . . . . Parts Fried . | . . . . . Impact Corruptions . | . . . . . Robots Melted . | . . . . . Combat Hostiles . | . . . . . Parts Melted . | . . . . . Heat Transferred 1425 | . 148 777 200 300 Parts Sabotaged . | . . . . . Parts Stolen . | . . . . . Parts Stripped . | . . . . . Power Chain Reactions 3 | . . . 2 1 Alert | -11 -10 -9 -9 -8 ------- Run | Yrd Mat Mat Min Mat Peak Influence 127 | 35 109 127 83 77 Initial 45 | . 22 45 14 . Average 28 | 16 69 75 7 19 Maximum Alert Level . | . . . . . Low Security (%) 100 | 100 100 100 100 100 Level 1 . | . . . . . Level 2 . | . . . . . Level 3 . | . . . . . Level 4 . | . . . . . Level 5 . | . . . . . High Security . | . . . . . Max Security . | . . . . . Squads Dispatched 1 | . . . . 1 Investigation . | . . . . . Extermination . | . . . . . Reinforcement 1 | . . . . 1 Assault . | . . . . . Garrison . | . . . . . Intercept . | . . . . . Searches Triggered . | . . . . . Construction Impeded 1 | . . . . 1 Haulers Reinforced . | . . . . . Active Scanning Responses . | . . . . . Cargo Convoy Interrupts . | . . . . . Stealth | -11 -10 -9 -9 -8 --------- Run | Yrd Mat Mat Min Mat Distress Signals 3 | . . 3 . . Communications Jammed . | . . . . . Distress Signals . | . . . . . Times Spotted 28 | 1 8 8 4 7 Peak Tracking Total 6 | 1 6 2 4 4 Tactical Retreats . | . . . . . Traps | -11 -10 -9 -9 -8 ------- Run | Yrd Mat Mat Min Mat Traps Triggered 3 | . . . . 3 Indirectly . | . . . . . Trap Hack Attempts . | . . . . . Triggered . | . . . . . Disarmed . | . . . . . Reprogrammed . | . . . . . Reused . | . . . . . Traps Extracted . | . . . . . Installed . | . . . . . Triggered . | . . . . . Machines | -11 -10 -9 -9 -8 ---------- Run | Yrd Mat Mat Min Mat Machines Disabled 2 | . . . 1 1 Max in Single Turn 1 | . . . 1 1 Machines Repaired . | . . . . . Machines Dismantled . | . . . . . Machines Sabotaged . | . . . . . Overloaded Fab Kills . | . . . . . Hacking | -11 -10 -9 -9 -8 --------- Run | Yrd Mat Mat Min Mat Machines Accessed 1 | . . 1 . . Terminals 1 | . . 1 . . Fabricators . | . . . . . Repair Stations . | . . . . . Recycling Units . | . . . . . Scanalyzers . | . . . . . Garrison Access . | . . . . . Total Hacks 1 | . . 1 . . Successful 1 | . . 1 . . Failed . | . . . . . Catastrophic . | . . . . . Database Lockouts . | . . . . . Manual 2 | . 2 . . . Terminals 1 | . . 1 . . Fabricators . | . . . . . Repair Stations . | . . . . . Recycling Units . | . . . . . Scanalyzers . | . . . . . Garrison Access . | . . . . . Terminal Hacks 1 | . . 1 . . Record 1 | . . 1 . . Fabricator Hacks . | . . . . . Repair Station Hacks . | . . . . . Recycling Unit Hacks . | . . . . . Scanalyzer . | . . . . . Garrison Access Hacks . | . . . . . Unauthorized Hacks . | . . . . . Terminals . | . . . . . Fabricators . | . . . . . Repair Stations . | . . . . . Recycling Units . | . . . . . Scanalyzers . | . . . . . Garrison Access . | . . . . . Data Cores Recovered 1 | . 1 . . . Used . | . . . . . Hacking Detections 2 | . 1 1 . . Full Trace Events . | . . . . . Feedback Events . | . . . . . Feedback Blocked . | . . . . . Robot Schematics Acquired . | . . . . . Robots Built . | . . . . . Authchips . | . . . . . Time . | . . . . . Total Robot Build Rating . | . . . . . Part Schematics Acquired . | . . . . . Parts Built . | . . . . . Authchips . | . . . . . Time . | . . . . . Total Part Build Rating . | . . . . . Parts Repaired . | . . . . . Time . | . . . . . Parts Recycled . | . . . . . Recycled Matter . | . . . . . Retrieved Matter . | . . . . . Retrieved Components . | . . . . . Parts Scanalyzed . | . . . . . Part Schematics Acquired . | . . . . . Parts Damaged . | . . . . . Bothacking | -11 -10 -9 -9 -8 ------------ Run | Yrd Mat Mat Min Mat Used RIF Installer . | . . . . . Robots Hacked 1 | . . . . 1 Non-combat . | . . . . . Combat 1 | . . . . 1 Robot Hacks Applied 1 | . . . . 1 parse_system 1 | . . . . 1 Relay Couplers Released . | . . . . . Fabnet Peak Effective % . | . . . . . Robots Rewired . | . . . . . Allies Hacked . | . . . . . Hacks Repelled . | . . . . . Allies | -11 -10 -9 -9 -8 -------- Run | Yrd Mat Mat Min Mat Total Allies . | . . . . . Largest Group . | . . . . . Highest-Rated Group . | . . . . . Highest-Rated Ally . | . . . . . Total Orders . | . . . . . Ally Attacks . | . . . . . Total Damage . | . . . . . Kills . | . . . . . Allies Corrupted . | . . . . . Allies Melted . | . . . . . Intel | -11 -10 -9 -9 -8 ------- Run | Yrd Mat Mat Min Mat Robot Analysis Total . | . . . . . Derelict Logs Recovered . | . . . . . Drone Launches . | . . . . . Drone Recoveries . | . . . . . Exploration | -11 -10 -9 -9 -8 ------------- Run | Yrd Mat Mat Min Mat Turns Passed 3339 | 259 288 629 1683 480 Spaces Moved 1224 | 163 181 282 483 115 Core 82 | 23 . . 55 4 Treads 102 | . . 90 12 . Legs 513 | 140 181 192 . . Wheels . | . . . . . Hover . | . . . . . Flight 527 | . . . 416 111 Fastest Speed 50 | 50 120 120 240 196 Average Speed 243 | 110 120 192 331 379 Slowest Speed 1005 | 120 120 260 800 1005 Overloaded Moves . | . . . . . Propulsion Burnouts . | . . . . . Robots Hopped . | . . . . . Cave-ins Triggered 1 | . . . 1 . Exploration Rate (%) 28 | 6 34 17 74 9 Regions Visited 4 Branch Regions 1 Pre-discovered Areas . | . . . . . Known Exits Taken . | . . . . . Unknown Exits Taken 4 | 1 1 1 1 . Scrap Searched 2 | . . . 2 . Spaces Dug . | . . . . . Terrain Destroyed 34 | . . . 9 25 Melee . | . . . . . Projectile . | . . . . . AOE 34 | . . . 9 25 Terrain Rammed . | . . . . . Walls Destroyed . | . . . . . Machines Disabled . | . . . . . Actions | -11 -10 -9 -9 -8 --------- Run | Yrd Mat Mat Min Mat Total 1424 | 205 217 332 535 135 Wait 4 | . . . 4 . Move 1220 | 162 180 281 482 115 Hop . | . . . . . Pick Up 38 | 9 4 15 10 . Fast Attach . | . . . . . Attach 28 | 5 2 6 9 6 Detach 1 | . . . 1 . Swap 8 | 1 2 3 1 1 Drop 7 | . 1 6 . . Fire 107 | 23 27 20 26 11 Melee 1 | . . . . 1 Ram 1 | . . . . 1 Kick 6 | 5 1 . . . Crush 1 | . . 1 . . Escape Stasis . | . . . . . Rewire 2 | . . . 2 . Trap . | . . . . . Miscellaneous . | . . . . . Route ------- -11/Scrapyard -10/Materials (discovered 2 exits: *Mat x2) -9/Materials -9/Mines -8/Materials History --------- Turn | Location | Event 2 | -11/Scrapyard | Met Revision 17 106 | -11/Scrapyard | Discovered new exit (range 8) 260 | -11/Scrapyard | Entered Materials 300 | -10/Materials | Build established: Mutant 363 | -10/Materials | Core integrity fell below 50% 400 | -10/Materials | Lost 3 parts (1p1n1w) 456 | -10/Materials | Discovered new exit (range 8) 537 | -10/Materials | Discovered new exit (range 8) 548 | -10/Materials | Entered another Materials area 548 | -9/Materials | Evolved 2 slots: Propulsion x2 1028 | -9/Materials | Discovered new exit (range 9) 1177 | -9/Materials | Entered Mines 1178 | -9/Mines | Assembled infested the area 1237 | -9/Mines | Core integrity fell below 50% 1251 | -9/Mines | Met 8R-AWN 1252 | -9/Mines | Met a Derelict bent on vengeance 1253 | -9/Mines | Crushed by falling debris 1272 | -9/Mines | Lost 8 parts (1p4n3w) 2004 | -9/Mines | Build established: Scavenger-Mutant 2504 | -9/Mines | Discovered new exit (range 13) 2759 | -9/Mines | YI-UF0 nonchalantly dropped a Grenade Launcher on the ground 2860 | -9/Mines | Entered Materials 2860 | -8/Materials | Evolved 2 slots: Propulsion x1, Utility x1 3170 | -8/Materials | Lost 4 parts (3n1w) 3314 | -8/Materials | Core integrity fell below 50% 3330 | -8/Materials | Core integrity fell below 20% 3340 | -8/Materials | Destroyed by G-47 Trooper with Particle Gun Last Messages --------------- System corrupted: Heat flow error (+174). R-06 Scavenger collects Lgt. Ion Engine. Critical hit (Burn: +37). U-05 Engineer builds a Wall. Critical hit (Burn: +37). Mining Laser destroyed. U-05 Engineer builds a Door. Jacked G-47 Trooper... Right-click on available options for more info. Keyboard players can use Shift-a~z. >>parse_system Reading system data... Datajack destroyed. M-13 Machinist repairs W-25 Informer. System corrupted: Heat flow error (+246). Critical hit (Burn: +37). Slammed into A-02 Transporter. Imp. Targeting Computer broken. Destabilizing: Short circuit. M-13 Machinist repairs G-47 Trooper. Map ----- +----------------------------------------------------+ | ?????????????????????????????????????????????????? | | ?????????????????????????????????????????????????? | | ?????????????????????????????????????????????????? | | ?????????????????????????????????????????????????? | | ?????????????????????????????????????????????????? | | ?????????????????????????????????????????????????? | | ?????????????????????????????????????????????????? | | ?????????????????????????????????????????????????? | | ?????????????????????????????????????????????????? | | ?????????????????????#???????????????????????????? | | ?????????????????????# ?????????????????????????? | | ?????????????????????# ?????????????????????????? | | ?????????????????????# ???###########???????????? | | ?????????????????????# ???# ? #???????????? | | ?????????????????????# ??# """"""" #???????????? | | ?????????????????????# ??# """"""" #???????????? | | ?????????????????????# ??# """"""" #???????????? | | ??????????????????#??# ??# """"""" #??????""???? | | ??????????????????# ?# ??# " """"" #??????""???? | | ???????????######## ## ??# #?????"""???? | | ???????????? / ??# % ### ???? | | ?????????????? #######+####### /##### | | ???????????????? """ ggm u % % | | ???????????????? """ ga %% | | ???????????????? """ % | | ???????????? ###@############### #### | | ?????????? ??? ?????## # #[ " | | ??????????? ! ????# """ #????# # # " | | ???????????? !??????# """ !#????# + + " | | ???????????? ????????# """ #????# # # | | ??????????????????????# #????# # # | | ??????????????????????# ! !#????######### #?## | | ??????????????????????########????????######+##### | | ??????????????????????????????????????# | | ??????????????????????????????????????# | | ??????????????????????????????????????# " """"" | | ??????????????????????????????????????# """"""""" | | ??????????????????????????????????????# """ """ | | ??????????????????????????????????????# | | ??????????????????????????????????????# | | ??????????????????????????????????????###########? | | ?????????????????????????????????????????????????? | | ?????????????????????????????????????????????????? | | ?????????????????????????????????????????????????? | | ?????????????????????????????????????????????????? | | ?????????????????????????????????????????????????? | | ?????????????????????????????????????????????????? | | ?????????????????????????????????????????????????? | | ?????????????????????????????????????????????????? | | ?????????????????????????????????????????????????? | +----------------------------------------------------+ Best States ------------- Heat Dissipation 31 Energy Generation 14 Energy Capacity 160 Matter Stores 300 Matter Capacity 300 Sight Range 18 Terrain Scan Density 10 Evasion (%) 55 Targeting Accuracy 6 Recoil Reduction 2 Item Schematics ----------------- None Robot Schematics ------------------ None Fabricated ------------ Nothing Alien Tech Used ----------------- None Achievements -------------- Unlikely Earthworm Challenges ------------ None Game ------ Seed TargetingThermicRedirector Manual? 0 Play Time 00:31:26 Cumulative 2.5 hours Start 2024.05.02 @ 11:22:55 End 2024.05.02 @ 11:54:30 Sessions 1 Manual Loads 0 Difficulty Rogue Special Mode None Game No. 2 Rogue 2 Adventurer 0 Explorer 0 Win Type - Total 0 Types 0/0/0/0/0/0/0/0/0 Lore% 4 Gallery% 4 Achievement% 4 Wizard Run 0 Options --------- Layout 1 ASCII 0 Keyboard 0 Movement Arrows Keybinds 0 Fullscreen 1 Font 24/Crisp Map View 50x35 Zoom Use 0% Tactical HUD 0 Map Filters NONE Filters NONE Steam 1 RUN: 0c4b72b1-a119-461f-8e49-9623b5a2a1a2